fUST/lending_fUST_20240116
["ID","MTS","AMOUNT","RATE_DAILY","PERIOD"]
[311688305,1705334441374,-2869.60295293,0.00024213,2]
[311688306,1705334441475,-58.56332557,0.00024213,2]
[311688307,1705334447922,-166.666666,0.00023833,2]
[311688308,1705334454278,-452.10708087,0.00024482,2]
[311688309,1705334459614,-191.16884209,0.00024482,2]
[311688310,1705334459643,-155.0,0.00024482,4]
[311688311,1705334468936,-198.98525444,0.00024482,2]
[311688312,1705334468963,-219.92284917,0.00024482,2]
[311688313,1705334469052,-40.86773341,0.00024482,2]
[311688314,1705334476237,-500.0,0.00024482,2]
[311688315,1705334477028,153.33333268,0.00024482,2]
[311688316,1705334477056,1.66666732,0.00024482,2]
[311688317,1705334482647,-166.666666,0.00024483,2]
[311688318,1705334482675,-233.69446174,0.00024494,2]
[311688319,1705334482786,-8.17063526,0.00024494,2]
[311688320,1705334484197,286.00588053,0.00024482,2]
[311688364,1705334838337,-12000.0,0.00024126,2]
[311688365,1705334838454,-12000.0,0.00024126,2]
[311688366,1705334838604,-900.0,0.00024126,2]
[311688367,1705334838822,-162.17318871,0.00024724,2]
[311688369,1705334854635,-12000.0,0.00024125,2]
[311688370,1705334854762,-7393.7590313,0.00024125,2]
[311688379,1705334930896,-166.666666,0.0002408,2]
[311688380,1705334930926,-159.65352624,0.00024316,2]
[311688381,1705334931059,-6.65959576,0.00024316,2]
[311688393,1705335027277,-943.22176908,0.00024316,5]
[311688394,1705335027454,-19.24942386,0.00024316,5]
[311688416,1705335032586,-198.98525444,0.00024812,2]
[311688418,1705335032595,-253.76844676,0.00024812,2]
[311688420,1705335032605,-3526.74246409,0.00024812,2]
[311688509,1705335033480,-4466.61705074,0.00024812,2]
[311688511,1705335033489,-155.0,0.00024813,4]
[311688513,1705335033498,-3126.02728391,0.00024813,2]
[311688514,1705335033507,-155.0,0.00024814,2]
[311688516,1705335033516,-4008.22981734,0.00024814,2]
[311688518,1705335033525,-171.18446323,0.000249,2]
[311688520,1705335033534,-1822.74700439,0.00025,2]
[311688522,1705335033543,-3833.1682345,0.00025,2]
[311688524,1705335033552,-1044.83564264,0.00025037,2]
[311688526,1705335033561,-241.865097,0.00025038,2]
[311688528,1705335033570,-2635.2993589,0.00025083,2]
[311688530,1705335033579,-166.666666,0.00025175,2]
[311688532,1705335033588,-2271.9244829,0.00025186,2]
[311688534,1705335033597,-1274.21523244,0.00025515,2]
[311688536,1705335033606,-534.31449291,0.00025515,2]
[311688538,1705335033615,-155.02015262,0.00025515,2]
[311688540,1705335033624,-166.666666,0.00026269,2]
[311688542,1705335033633,-622.15188307,0.000264,2]
[311688543,1705335033642,-289.77163343,0.00027,2]
[311688545,1705335033651,-461.06432413,0.00027024,2]
[311688547,1705335033660,-164.574171,0.00027025,2]
[311688549,1705335033669,-166.666666,0.00027363,2]
[311688551,1705335033678,-249.26117983,0.00027397,2]
[311688553,1705335033687,-10135.33451069,0.000274,2]
[311688555,1705335033697,-620.10759415,0.0002772,2]
[311688557,1705335033707,-2969.63912036,0.0002821,2]
[311688559,1705335033715,-1299.26146621,0.0002835,2]
[311688561,1705335033725,-219.49850361,0.0002835,2]
[311688563,1705335033734,-4427.47464918,0.0002835,2]
[311688565,1705335033744,-261.73466838,0.0002835,2]
[311688566,1705335033753,-721.83907828,0.0002835,2]
[311688589,1705335038741,-687.07152181,0.00024811,2]
[311688590,1705335038751,-139.07950664,0.0002835,2]
[311688591,1705335038760,-573.70446246,0.00028351,2]
[311688593,1705335038769,-4878.72,0.0002879,3]
[311688594,1705335038778,-190.83054351,0.00028798,2]
[311688595,1705335038788,-260.54316135,0.00028798,2]
[311688596,1705335038798,-521.00009772,0.00028798,2]
[311688597,1705335038807,-500.0,0.00028798,2]
[311688598,1705335038816,-415.32625802,0.00028798,2]
[311688599,1705335038825,-37453.7961679,0.000288,2]
[311688600,1705335038834,-18940.54627858,0.000289,2]
[311688601,1705335038843,-1891.09041532,0.00028999,2]
[311688602,1705335038852,-831.81165951,0.00029,2]
[311688603,1705335038862,-2214.63844153,0.00029,2]
[311688604,1705335038870,-2034.69724894,0.00029,2]
[311688606,1705335038880,-620.00537971,0.00029106,2]
[311688608,1705335038889,-153.0,0.00029178,2]
[311688609,1705335038899,-153.0,0.00029178,2]
[311688610,1705335038908,-153.0,0.00029178,2]
[311688611,1705335038917,-153.0,0.00029178,2]
[311688612,1705335038926,-154.6228574,0.00029315,2]
[311688614,1705335038936,-153.0,0.00029315,2]
[311688615,1705335038945,-153.1880119,0.00029315,2]
[311688616,1705335038956,-153.0,0.00029315,2]
[311688617,1705335038965,-169.1879247,0.00029315,2]
[311688618,1705335038974,-441.8574589,0.00029315,2]
[311688619,1705335038983,-198.8577961,0.00029315,2]
[311688620,1705335038993,-153.0,0.00029315,2]
[311688621,1705335039002,-198.8577961,0.00029315,2]
[311688622,1705335039012,-153.0,0.00029315,2]
[311688623,1705335039021,-153.0,0.00029315,2]
[311688624,1705335039035,-198.8577961,0.00029315,2]
[311688625,1705335039045,-153.0,0.00029315,2]
[311688626,1705335039055,-198.8577961,0.00029315,2]
[311688627,1705335039064,-153.0,0.00029315,2]
[311688628,1705335039074,-153.0,0.00029315,2]
[311688629,1705335039084,-198.8577961,0.00029315,2]
[311688630,1705335039094,-306.0,0.00029589,2]
[311688631,1705335039104,-906.59808657,0.000298,2]
[311688632,1705335039115,-154.47214293,0.000299,2]
[311688633,1705335039125,-297.8809135,0.0003,4]
[311688634,1705335039135,-160.69776041,0.0003,4]
[311688635,1705335039145,-527.0629941,0.0003,5]
[311688636,1705335039155,-5000.0,0.0003,2]
[311688637,1705335039164,-4999.99,0.0003,2]
[311688638,1705335039174,-2103.97,0.0003,2]
[311688639,1705335039183,-4999.98,0.0003,2]
[311688640,1705335039193,-2038.29,0.0003,2]
[311688641,1705335039205,-154.47214291,0.00030036,2]
[311688642,1705335039216,-35673.24107111,0.00030037,3]
[311688643,1705335039226,-197.5089968,0.0003013,2]
[311688644,1705335039237,-265.26499646,0.00030134,4]
[311688645,1705335039253,-1078.60667109,0.00030134,4]
[311688646,1705335039263,-293.14751178,0.00030136,3]
[311688647,1705335039273,-517.3466676,0.00030136,2]
[311688648,1705335039283,-73.02911211,0.00030136,2]
[311688656,1705335041545,-3223.71625917,0.00024316,2]
[311688657,1705335041556,-426.97088789,0.00030136,2]
[311688658,1705335041566,-502.93276528,0.00030136,2]
[311688659,1705335041577,-348.96678123,0.00030136,2]
[311688660,1705335041587,-504.19080815,0.00030136,2]
[311688661,1705335041597,-500.0,0.00030136,2]
[311688662,1705335041607,-500.73512296,0.00030136,2]
[311688663,1705335041617,-500.0,0.00030136,2]
[311688664,1705335041628,-500.0,0.00030136,2]
[311688665,1705335041638,-500.0,0.00030136,2]
[311688666,1705335041649,-500.0,0.00030136,2]
[311688667,1705335041660,-500.0,0.00030136,2]
[311688668,1705335041669,-281.47680327,0.00030136,2]
[311688669,1705335041679,-500.48723429,0.00030136,2]
[311688670,1705335041689,-500.0,0.00030136,2]
[311688671,1705335041699,-500.0,0.00030136,2]
[311688672,1705335041714,-502.38159096,0.00030136,2]
[311688673,1705335041723,-500.0,0.00030136,2]
[311688674,1705335041733,-500.0,0.00030136,2]
[311688675,1705335041743,-500.0,0.00030136,2]
[311688676,1705335041753,-503.56970682,0.00030136,2]
[311688677,1705335041763,-500.0,0.00030136,2]
[311688678,1705335041772,-500.0,0.00030136,2]
[311688679,1705335041781,-225.46911807,0.00030136,2]
[311688680,1705335041791,-150.0,0.00030136,2]
[311688681,1705335041800,-503.01636294,0.00030136,2]
[311688682,1705335041811,-500.0,0.00030136,2]
[311688683,1705335041820,-500.0,0.00030136,2]
[311688684,1705335041829,-501.22037415,0.00030136,2]
[311688685,1705335041838,-500.0,0.00030136,2]
[311688686,1705335041848,-511.72,0.00030136,2]
[311688687,1705335041858,-548.39727857,0.00030136,2]
[311688688,1705335041867,-496.84283628,0.00030136,2]
[311688689,1705335041877,-500.0,0.00030136,2]
[311688690,1705335041887,-500.0,0.00030136,2]
[311688691,1705335041897,-500.0,0.00030136,2]
[311688692,1705335041906,-254.87564764,0.00030136,2]
[311688693,1705335041916,-554.03374077,0.00030136,2]
[311688694,1705335041925,-164.48532718,0.00030136,2]
[311688695,1705335041935,-350.0,0.00030136,2]
[311688696,1705335041944,-500.0,0.00030136,2]
[311688697,1705335041954,-500.0,0.00030136,2]
[311688698,1705335041966,-500.0,0.00030136,2]
[311688699,1705335041976,-501.00400068,0.00030136,2]
[311688700,1705335041987,-500.0,0.00030136,2]
[311688701,1705335041998,-500.0,0.00030136,2]
[311688702,1705335042008,-500.0,0.00030136,2]
[311688703,1705335042024,-500.0,0.00030136,2]
[311688704,1705335042035,-92.4542454,0.00030136,2]
[311688705,1705335042049,-827.37430365,0.00030136,2]
[311688706,1705335042135,-1055.04145095,0.00030136,2]
[311688707,1705335042145,-500.0,0.00030136,2]
[311688708,1705335042154,-500.3216455,0.00030136,2]
[311688709,1705335042163,-500.0,0.00030136,2]
[311688710,1705335042173,-500.0,0.00030136,2]
[311688711,1705335042183,-500.0,0.00030136,2]
[311688712,1705335042193,-500.0,0.00030136,2]
[311688713,1705335042203,-530.76,0.00030136,2]
[311688714,1705335042214,-394.29707904,0.00030136,2]
[311688715,1705335042224,-514.11597858,0.00030136,2]
[311688716,1705335042233,-869.22,0.00030136,2]
[311688717,1705335042242,-500.86343813,0.00030136,2]
[311688718,1705335042252,-1000.0,0.00030136,2]
[311688719,1705335042262,-500.0,0.00030136,2]
[311688720,1705335042272,-500.0,0.00030136,2]
[311688721,1705335042281,-500.0,0.00030136,2]
[311688722,1705335042291,-505.76316621,0.00030136,2]
[311688723,1705335042301,-155.03516206,0.00030136,2]
[311688724,1705335042310,-229.20978321,0.00030136,2]
[311688725,1705335042319,-500.0,0.00030136,2]
[311688726,1705335042329,-500.0,0.00030136,2]
[311688727,1705335042338,-500.0,0.00030136,2]
[311688728,1705335042348,-500.0,0.00030136,2]
[311688729,1705335042357,-500.0,0.00030136,2]
[311688730,1705335042367,-500.0,0.00030136,2]
[311688731,1705335042376,-500.0,0.00030136,2]
[311688732,1705335042386,-344.06310828,0.00030136,2]
[311688733,1705335042396,-500.0,0.00030136,2]
[311688734,1705335042406,-138.40827576,0.00030136,2]
[311688750,1705335043675,-307.1994419,0.00029315,2]
[311688751,1705335043686,-198.8577961,0.00029315,2]
[311688752,1705335043696,-364.8258418,0.00030136,2]
[311688753,1705335043706,-500.0,0.00030136,2]
[311688754,1705335043717,-502.3199276,0.00030136,2]
[311688755,1705335043727,-500.0,0.00030136,2]
[311688756,1705335043737,-507.34515174,0.00030136,2]
[311688757,1705335043749,-507.90308559,0.00030136,2]
[311688758,1705335043759,-607.63560946,0.00030136,2]
[311688759,1705335043769,-575.94359355,0.00030136,2]
[311688760,1705335043779,-500.0,0.00030136,2]
[311688761,1705335043789,-195.59722995,0.00030136,2]
[311688762,1705335043798,-500.0,0.00030136,2]
[311688763,1705335043807,-508.53481292,0.00030136,2]
[311688764,1705335043817,-500.0,0.00030136,2]
[311688765,1705335043827,-500.0,0.00030136,2]
[311688766,1705335043837,-500.0,0.00030136,2]
[311688767,1705335043848,-200.0,0.00030136,2]
[311688768,1705335043858,-1085.05,0.00030136,2]
[311688769,1705335043868,-500.0,0.00030136,2]
[311688770,1705335043880,-500.0,0.00030136,2]
[311688771,1705335043894,-321.69597861,0.00030136,2]
[311688772,1705335043906,-500.0,0.00030136,2]
[311688773,1705335043916,-500.0,0.00030136,2]
[311688774,1705335043926,-500.0,0.00030136,2]
[311688775,1705335043937,-185.024086,0.00030136,2]
[311688776,1705335043948,-500.0,0.00030136,2]
[311688777,1705335043959,-500.62419739,0.00030136,2]
[311688778,1705335043968,-500.0,0.00030136,2]
[311688779,1705335043977,-500.0,0.00030136,2]
[311688780,1705335043987,-500.69934693,0.00030136,2]
[311688781,1705335043996,-698.56,0.00030136,2]
[311688782,1705335044005,-729.18,0.00030136,2]
[311688783,1705335044014,-500.0,0.00030136,2]
[311688784,1705335044024,-500.0,0.00030136,2]
[311688785,1705335044034,-500.0,0.00030136,2]
[311688786,1705335044043,-504.468551,0.00030136,2]
[311688787,1705335044052,-517.0754016,0.00030136,2]
[311688788,1705335044061,-500.0,0.00030136,2]
[311688789,1705335044071,-504.20290019,0.00030136,2]
[311688790,1705335044080,-561.54,0.00030136,2]
[311688791,1705335044089,-881.28,0.00030136,2]
[311688792,1705335044098,-500.0,0.00030136,2]
[311688793,1705335044107,-500.0,0.00030136,2]
[311688794,1705335044116,-500.0,0.00030136,2]
[311688795,1705335044126,-500.0,0.00030136,2]
[311688796,1705335044135,-500.0,0.00030136,2]
[311688797,1705335044145,-1088.13,0.00030136,2]
[311688798,1705335044154,-500.0,0.00030136,2]
[311688799,1705335044163,-500.0,0.00030136,2]
[311688800,1705335044173,-500.0,0.00030136,2]
[311688801,1705335044245,-437.92950433,0.00030136,2]
[311688802,1705335044263,-500.0,0.00030136,2]
[311688803,1705335044273,-500.0,0.00030136,2]
[311688804,1705335044282,-766.13,0.00030136,2]
[311688805,1705335044291,-500.43796981,0.00030136,2]
[311688806,1705335044301,-500.0,0.00030136,2]
[311688807,1705335044311,-500.0,0.00030136,2]
[311688808,1705335044319,-220.0,0.00030136,2]
[311688809,1705335044328,-500.0,0.00030136,2]
[311688810,1705335044337,-500.0,0.00030136,2]
[311688811,1705335044346,-500.0,0.00030136,2]
[311688812,1705335044355,-198.08724147,0.00030136,5]
[311688813,1705335044364,-502.69230495,0.00030136,2]
[311688814,1705335044373,-531.08430397,0.00030136,2]
[311688815,1705335044383,-500.0,0.00030136,2]
[311688816,1705335044392,-503.98676531,0.00030136,2]
[311688817,1705335044402,-502.26499882,0.00030136,2]
[311688818,1705335044411,-500.0,0.00030136,2]
[311688819,1705335044420,-500.0,0.00030136,2]
[311688820,1705335044430,-500.0,0.00030136,2]
[311688821,1705335044439,-500.0,0.00030136,2]
[311688822,1705335044448,-159.00638243,0.00030136,2]
[311688823,1705335044457,-500.0,0.00030136,2]
[311688824,1705335044467,-587.30134196,0.00030136,2]
[311688825,1705335044476,-503.63634839,0.00030136,2]
[311688826,1705335044485,-500.0,0.00030136,2]
[311688827,1705335044494,-500.0,0.00030136,2]
[311688828,1705335044503,-500.0,0.00030136,2]
[311688829,1705335044513,-500.0,0.00030136,2]
[311688830,1705335044522,-500.85728757,0.00030136,2]
[311688831,1705335044531,-500.0,0.00030136,2]
[311688832,1705335044540,-500.0,0.00030136,2]
[311688833,1705335044549,-500.0,0.00030136,2]
[311688834,1705335044559,-2314.61,0.00030136,2]
[311688835,1705335044568,-500.0,0.00030136,2]
[311688836,1705335044577,-500.0,0.00030136,2]
[311688837,1705335044586,-500.0,0.00030136,2]
[311688838,1705335044595,-508.42158599,0.00030136,2]
[311688839,1705335044604,-500.0,0.00030136,2]
[311688840,1705335044613,-500.0,0.00030136,2]
[311688841,1705335044622,-615.27474198,0.00030136,2]
[311688842,1705335044631,-202.92742487,0.00030136,2]
[311688843,1705335044640,-538.9977585,0.00030136,2]
[311688844,1705335044649,-500.0,0.00030136,2]
[311688845,1705335044658,-500.0,0.00030136,2]
[311688846,1705335044667,-657.38,0.00030136,2]
[311688847,1705335044676,-500.0,0.00030136,2]
[311688848,1705335044685,-246.18593123,0.00030136,2]
[311688849,1705335044694,-500.0,0.00030136,2]
[311688850,1705335044703,-500.0,0.00030136,2]
[311688851,1705335044713,-500.0,0.00030136,2]
[311688852,1705335044721,-530.36149923,0.00030136,2]
[311688853,1705335044730,-500.0,0.00030136,2]
[311688854,1705335044740,-500.0,0.00030136,2]
[311688855,1705335044749,-500.0,0.00030136,2]
[311688856,1705335044758,-500.0,0.00030136,2]
[311688857,1705335044767,-541.04,0.00030136,2]
[311688858,1705335044776,-500.0,0.00030136,2]
[311688859,1705335044785,-500.0,0.00030136,2]
[311688860,1705335044794,-501.31127598,0.00030136,2]
[311688861,1705335044803,-500.0,0.00030136,2]
[311688862,1705335044813,-5862.08,0.00030136,2]
[311688863,1705335044822,-500.0,0.00030136,2]
[311688864,1705335044831,-500.0,0.00030136,2]
[311688865,1705335044840,-6012.75,0.00030136,2]
[311688866,1705335044850,-500.0,0.00030136,2]
[311688867,1705335044860,-500.0,0.00030136,2]
[311688868,1705335044870,-500.0,0.00030136,2]
[311688869,1705335044879,-500.0,0.00030136,2]
[311688870,1705335044888,-500.0,0.00030136,2]
[311688871,1705335044897,-500.0,0.00030136,2]
[311688872,1705335044907,-500.0,0.00030136,2]
[311688873,1705335044917,-500.0,0.00030136,2]
[311688874,1705335044929,-500.0,0.00030136,2]
[311688875,1705335044938,-590.35,0.00030136,2]
[311688876,1705335044949,-500.0,0.00030136,2]
[311688877,1705335044959,-506.080899,0.00030136,2]
[311688878,1705335044968,-500.0,0.00030136,2]
[311688879,1705335044977,-500.0,0.00030136,2]
[311688880,1705335044986,-507.82176411,0.00030136,2]
[311688881,1705335044995,-500.0,0.00030136,2]
[311688882,1705335045005,-535.5,0.00030136,2]
[311688883,1705335045014,-500.0,0.00030136,2]
[311688884,1705335045023,-500.0,0.00030136,2]
[311688885,1705335045037,-161.40768143,0.00030136,2]
[311688886,1705335045046,-1067.76,0.00030136,2]
[311688887,1705335045055,-578.93,0.00030136,2]
[311688888,1705335045065,-500.0,0.00030136,2]
[311688889,1705335045074,-500.0,0.00030136,2]
[311688890,1705335045084,-500.0,0.00030136,2]
[311688891,1705335045093,-892.27,0.00030136,2]
[311688892,1705335045102,-500.0,0.00030136,2]
[311688893,1705335045111,-500.0,0.00030136,2]
[311688894,1705335045121,-559.57981711,0.00030136,2]
[311688895,1705335045130,-503.2282756,0.00030136,2]
[311688896,1705335045140,-2481.36,0.00030136,2]
[311688897,1705335045149,-398.73359353,0.00030136,2]
[311688898,1705335045158,-505.37573343,0.00030136,2]
[311688899,1705335045167,-401.59386146,0.00030136,2]
[311688900,1705335045176,-202.99278543,0.00030136,2]
[311688901,1705335045185,-500.0,0.00030136,2]
[311688902,1705335045194,-500.0,0.00030136,2]
[311688903,1705335045203,-3730.18,0.00030136,2]
[311688904,1705335045216,-505.69137092,0.00030136,2]
[311688905,1705335045225,-502.10441126,0.00030136,2]
[311688906,1705335045235,-383.87330556,0.00030136,2]
[311688907,1705335045244,-518.07,0.00030136,2]
[311688908,1705335045254,-500.0,0.00030136,2]
[311688909,1705335045263,-312.25901407,0.00030136,2]
[311688910,1705335045272,-500.0,0.00030136,2]
[311688911,1705335045280,-1207.06,0.00030136,2]
[311688912,1705335045290,-500.0,0.00030136,2]
[311688913,1705335045299,-500.0,0.00030136,2]
[311688914,1705335045309,-500.0,0.00030136,2]
[311688915,1705335045319,-500.0,0.00030136,2]
[311688916,1705335045328,-500.0,0.00030136,2]
[311688917,1705335045337,-500.0,0.00030136,2]
[311688918,1705335045346,-500.0,0.00030136,2]
[311688919,1705335045355,-500.0,0.00030136,2]
[311688920,1705335045365,-500.0,0.00030136,2]
[311688921,1705335045374,-19473.88,0.00030136,2]
[311688922,1705335045383,-500.0,0.00030136,2]
[311688923,1705335045393,-500.0,0.00030136,2]
[311688924,1705335045402,-500.0,0.00030136,2]
[311688925,1705335045411,-500.0,0.00030136,2]
[311688926,1705335045420,-500.0,0.00030136,2]
[311688927,1705335045429,-500.0,0.00030136,2]
[311688928,1705335045438,-500.0,0.00030136,2]
[311688929,1705335045448,-11841.85,0.00030136,2]
[311688930,1705335045458,-4448.83,0.00030136,2]
[311688931,1705335045469,-1609.13,0.00030136,2]
[311688932,1705335045479,-500.0,0.00030136,2]
[311688933,1705335045487,-507.41897844,0.00030136,2]
[311688934,1705335045497,-500.0,0.00030136,2]
[311688935,1705335045506,-500.0,0.00030136,2]
[311688936,1705335045515,-503.82291025,0.00030136,2]
[311688937,1705335045524,-500.0,0.00030136,2]
[311688938,1705335045533,-500.0,0.00030136,2]
[311688939,1705335045542,-500.0,0.00030136,2]
[311688940,1705335045551,-500.0,0.00030136,2]
[311688941,1705335045561,-500.0,0.00030136,2]
[311688942,1705335045570,-500.0,0.00030136,2]
[311688943,1705335045579,-500.0,0.00030136,2]
[311688944,1705335045589,-539.09,0.00030136,2]
[311688945,1705335045599,-189.61033351,0.00030136,2]
[311688946,1705335045608,-500.0,0.00030136,2]
[311688947,1705335045618,-420.44547826,0.00030136,2]
[311688948,1705335045627,-500.0,0.00030136,2]
[311688949,1705335045636,-500.0,0.00030136,2]
[311688950,1705335045645,-425.03867286,0.00030136,2]
[311688951,1705335045654,-500.0,0.00030136,2]
[311688952,1705335045666,-500.0,0.00030136,5]
[311688953,1705335045676,-911.71,0.00030136,2]
[311688954,1705335045685,-513.75406854,0.00030136,2]
[311688955,1705335045695,-500.0,0.00030136,2]
[311688956,1705335045704,-500.0,0.00030136,2]
[311688957,1705335045717,-500.0,0.00030136,2]
[311688958,1705335045727,-500.0,0.00030136,2]
[311688959,1705335045736,-500.0,0.00030136,2]
[311688960,1705335045745,-500.0,0.00030136,2]
[311688961,1705335045754,-534.44,0.00030136,2]
[311688962,1705335045828,-500.56900131,0.00030136,2]
[311688963,1705335045839,-500.0,0.00030136,2]
[311688964,1705335045848,-415.79701904,0.00030136,2]
[311688965,1705335045858,-1000.0,0.00030136,2]
[311688966,1705335045866,-500.0,0.00030136,2]
[311688967,1705335045876,-500.0,0.00030136,2]
[311688968,1705335045886,-2349.04,0.00030136,2]
[311688969,1705335045895,-500.0,0.00030136,2]
[311688970,1705335045905,-500.0,0.00030136,2]
[311688971,1705335045914,-500.66104757,0.00030136,2]
[311688972,1705335045924,-3888.6,0.00030136,2]
[311688973,1705335045933,-500.0,0.00030136,2]
[311688974,1705335045942,-500.0,0.00030136,2]
[311688975,1705335045951,-500.0,0.00030136,2]
[311688976,1705335045962,-500.0,0.00030136,2]
[311688977,1705335045972,-500.0,0.00030136,2]
[311688978,1705335045981,-500.0,0.00030136,2]
[311688979,1705335045990,-500.0,0.00030136,2]
[311688980,1705335046000,-728.6,0.00030136,2]
[311688981,1705335046009,-451.05876609,0.00030136,2]
[311688982,1705335046019,-444.00620522,0.00030136,2]
[311689008,1705335046705,-155.0,0.00029314,4]
[311689010,1705335046716,-873.97071269,0.00029314,2]
[311689011,1705335046728,-3918.76982547,0.00030126,3]
[311689014,1705335046765,-146.83017453,0.00030126,3]
[311689015,1705335046773,-133.56982547,0.00030135,4]
[311689016,1705335046795,-4324.38227444,0.00030135,4]
[311689018,1705335068048,-155.0,0.00024316,2]
[311689019,1705335068076,-1782.5122458,0.00024316,2]
[311689020,1705335068161,-39.54106624,0.00024316,2]
[311689021,1705335069632,1897.97117956,0.00024316,2]
[311689022,1705335069658,181.9252961,0.00024316,2]
[311689023,1705335074034,-3148.27474692,0.00024316,2]
[311689024,1705335074269,-64.25050504,0.00024316,2]
[311689037,1705335473184,-323.12147464,0.00024557,2]
[311689038,1705335473211,-155.46802535,0.00024558,2]
[311689039,1705335473255,-9.76713265,0.00024558,2]
[311689041,1705335509448,-12000.0,0.00024717,2]
[311689042,1705335509721,-10565.1712993,0.00024717,2]
[311689056,1705335803013,-12000.0,0.00023896,2]
[311689057,1705335803203,-12000.0,0.00023896,2]
[311689058,1705335803326,-900.0,0.00023896,2]
[311689062,1705335907814,-164.42093675,0.00023994,2]
[311689063,1705335907841,-168.32557104,0.00023995,2]
[311689064,1705335907951,-6.79074506,0.00023995,2]
[311689066,1705335943876,-849.03657826,0.00024792,2]
[311689067,1705335943904,-150.78004237,0.00024793,4]
[311689068,1705335944021,-4.21995763,0.00024793,4]
[311689069,1705335944048,-171.1844632,0.00024794,2]
[311689072,1705335956935,-155.0,0.00024791,2]
[311689073,1705335956963,-148.8,0.00024792,2]
[311689074,1705335957176,-6.2,0.00024792,2]
[311689075,1705335959002,155.0,0.00023464,4]
[311689077,1705335975413,-166.666666,0.00023895,2]
[311689078,1705335975440,-159.99999936,0.00024547,2]
[311689079,1705335975711,-6.66666664,0.00024547,2]
[311689080,1705336036800,-198.98525444,0.00023463,2]
[311689081,1705336036829,-465.05659501,0.00023463,2]
[311689082,1705336036978,-212.53712892,0.00023463,2]
[311689083,1705336042203,-316.65904515,0.00023463,2]
[311689084,1705336042415,-6.46242949,0.00023463,2]
[311689085,1705336043476,175.00244479,0.00023463,2]
[311689086,1705336118201,-155.0,0.00023462,4]
[311689087,1705336118228,-1232.83994213,0.00023462,2]
[311689088,1705336118386,-18.90232737,0.00023462,2]
[311689089,1705336118413,-164.42093675,0.00023463,2]
[311689094,1705336200043,-175.00244479,0.00023463,2]
[311689095,1705336200072,-1545.06509633,0.00023463,2]
[311689096,1705336200320,-35.10341921,0.00023463,2]
[311689124,1705336231778,-155.0,0.00023462,4]
[311689126,1705336231787,-1001.76825384,0.00024865,2]
[311689128,1705336231797,-174.81009768,0.00024865,2]
[311689130,1705336231806,-4008.22981734,0.00024866,2]
[311689132,1705336231815,-3949.55188121,0.00024867,2]
[311689134,1705336231824,-20848.89855073,0.00024867,2]
[311689136,1705336231833,-264.9672714,0.00024867,2]
[311689138,1705336231842,-178.18629661,0.00024879,2]
[311689140,1705336231851,-211.95899474,0.00024894,2]
[311689142,1705336231859,-787.5012184,0.00024911,2]
[311689145,1705336231868,-166.666666,0.00025198,2]
[311689148,1705336231878,-8193.12070066,0.00025613,2]
[311689151,1705336231887,-166.666666,0.0002585,2]
[311689154,1705336231896,-344.31274958,0.00026071,2]
[311689157,1705336231905,-177.53063967,0.00026071,2]
[311689160,1705336231914,-742.63347537,0.00026071,2]
[311689163,1705336231923,-324.02136722,0.00026071,2]
[311689166,1705336231931,-198.46962736,0.00026071,2]
[311689169,1705336231940,-266.57426074,0.00026071,2]
[311689172,1705336231949,-841.80168754,0.00026071,2]
[311689174,1705336231958,-163.74595128,0.00026071,2]
[311689177,1705336231967,-234.61726136,0.00026072,2]
[311689180,1705336231975,-23832.59163549,0.00026073,2]